bitfinex/quotes_SOLUSD_20250307
["timestamp","ask_amount","ask_price","bid_price","bid_amount"]
[1741384159349,48.01222313,143.37,143.31,48.01222313]
[1741384159560,82.3,143.38,143.34,48.01222313]
[1741384159878,82.3,143.38,143.29,6.0387]
[1741384159879,82.3,143.38,143.35,48.01222313]
[1741384160261,9.08,143.39,143.35,48.01222313]
[1741384160970,9.08,143.39,143.35,54.98792313]
[1741384161444,9.08,143.39,143.36,48.01222313]
[1741384161644,82.33,143.41,143.38,48.01222313]
[1741384161848,0.03,143.41,143.4,48.01222313]
[1741384162875,0.03,143.41,143.32,24.4207]
[1741384163079,0.03,143.41,143.37,48.01222313]
[1741384163757,0.03,143.41,143.38,48.01222313]
[1741384163965,0.03,143.41,143.36,48.01222313]
[1741384164165,0.03,143.41,143.32,24.4207]
[1741384164166,48.01222313,143.39,143.32,6.9773]
[1741384164555,131.35942313,143.4,143.34,48.01222313]
[1741384164967,2.7897,143.38,143.33,48.01222313]
[1741384165159,48.01222313,143.36,143.3,48.01222313]
[1741384165371,130.31222313,143.35,143.29,48.01222313]
[1741384165954,48.01222313,143.34,143.28,48.01222313]
[1741384166175,57.07222313,143.33,143.27,48.01222313]
[1741384166482,9.06,143.33,143.27,48.01222313]
[1741384166658,9.06,143.33,143.28,48.01222313]
[1741384167685,11.8507,143.33,143.28,48.01222313]
[1741384167865,11.8507,143.33,143.27,48.01222313]
[1741384168066,59.86292313,143.33,143.27,48.01222313]
[1741384168983,9.06,143.33,143.3,48.01222313]
[1741384169685,82.3,143.35,143.32,48.01222313]
[1741384170252,82.3,143.35,143.3,48.01222313]
[1741384170563,82.3,143.35,143.33,48.01222313]
[1741384170770,2.79,143.37,143.32,48.01222313]
[1741384171382,82.3,143.38,143.36,48.01222313]
[1741384171559,85.0899,143.38,143.33,48.01222313]
[1741384172163,82.3,143.38,143.36,48.01222313]
[1741384172360,0.03,143.41,143.37,48.01222313]
[1741384172589,0.03,143.41,143.38,48.01222313]
[1741384172763,0.03,143.41,143.37,48.01222313]
[1741384173177,2.8192,143.41,143.37,48.01222313]
[1741384173492,0.03,143.41,143.33,24.4191]
[1741384173788,0.03,143.41,143.38,48.01222313]
[1741384173961,0.03,143.41,143.36,48.01222313]
[1741384174779,48.04222313,143.41,143.35,48.01222313]
[1741384174978,0.03,143.41,143.38,48.01222313]
[1741384175185,0.03,143.41,143.39,48.01222313]
[1741384175558,0.03,143.41,143.39,54.98582313]
[1741384175886,0.03,143.41,143.39,48.01222313]
[1741384176466,0.03,143.41,143.39,54.98602313]
[1741384176984,0.03,143.41,143.39,48.01222313]
[1741384177182,0.03,143.41,143.4,48.01222313]
[1741384177386,0.03,143.41,143.4,73.63537199]
[1741384177556,82.3,143.49,143.4,91.06907199]
[1741384177761,82.3,143.49,143.45,48.01222313]
[1741384177990,85.0876,143.49,143.44,48.01222313]
[1741384178176,48.01222313,143.47,143.41,48.01222313]
[1741384179154,48.01222313,143.47,143.37,17.4367]
[1741384179155,83.3472,143.46,143.4,48.01222313]
[1741384179388,2.7888,143.43,143.38,48.01222313]
[1741384179774,2.7888,143.43,143.38,54.98652313]
[1741384180084,2.7888,143.43,143.38,48.01222313]
[1741384180273,50.80102313,143.43,143.37,48.01222313]
[1741384181505,34.7437067,143.43,143.37,31.9549067]
[1741384183473,2.7888,143.43,143.38,31.9549067]
[1741384184202,34.7437067,143.43,143.37,31.9549067]
[1741384185202,41.7157067,143.43,143.36,31.9549067]
[1741384185498,33.0021067,143.42,143.36,31.9549067]
[1741384185707,31.9549067,143.41,143.35,31.9879067]
[1741384186001,115.3021067,143.42,143.36,31.9549067]
[1741384186900,2.7892,143.41,143.36,31.9549067]
[1741384187095,41.7171067,143.41,143.35,0.033]
[1741384187297,115.3021067,143.4,143.35,0.033]
[1741384187485,31.9549067,143.39,143.35,0.033]
[1741384187983,115.3021067,143.4,143.35,0.033]
[1741384188380,82.3,143.4,143.35,38.9637067]
[1741384188580,82.3,143.4,143.38,31.9549067]
[1741384188819,85.1188,143.43,143.38,31.9549067]
[1741384189799,33.0021067,143.42,143.36,31.9549067]
[1741384190003,125.0929067,143.43,143.36,31.9549067]
[1741384191611,118.1209067,143.43,143.36,38.9303067]
[1741384191831,85.1188,143.43,143.38,31.9549067]
[1741384192998,85.1188,143.43,143.37,31.9549067]
[1741384193198,117.0737067,143.43,143.36,38.9301067]
[1741384194096,117.0737067,143.43,143.36,31.9549067]
[1741384194296,31.9549067,143.41,143.35,31.9879067]
[1741384194608,31.9549067,143.4,143.35,0.033]
[1741384195712,115.3021067,143.41,143.35,0.033]
[1741384195882,82.3,143.41,143.36,31.9549067]
[1741384196495,2.7894,143.4,143.35,31.9879067]
[1741384197410,50.7378067,143.4,143.35,0.033]
[1741384197718,31.9549067,143.37,143.35,0.033]
[1741384198305,115.3021067,143.38,143.35,0.033]
[1741384198703,2.7899,143.37,143.35,0.033]
[1741384199685,86.137,143.38,143.35,0.033]
[1741384199890,85.0898,143.38,143.35,0.033]
[1741384201319,33.0021067,143.37,143.35,0.033]
[1741384201495,85.0898,143.38,143.35,0.033]
[1741384201697,9.02,143.4,143.35,31.9879067]
[1741384201892,9.02,143.4,143.36,31.9549067]
[1741384202293,1.0472,143.39,143.35,0.033]
[1741384202600,9.02,143.4,143.36,31.9549067]
[1741384202801,0.03,143.41,143.36,6.975]
[1741384203101,0.03,143.41,143.36,63.83565556]
[1741384203307,0.03,143.41,143.36,13.2311]
[1741384203496,2.8192,143.41,143.36,31.9549067]
[1741384203823,0.03,143.41,143.4,31.9549067]
[1741384205121,0.03,143.41,143.4,38.9284067]
[1741384205425,0.03,143.41,143.39,6.9739]
[1741384205623,0.03,143.41,143.4,31.9549067]
[1741384205832,0.03,143.41,143.36,31.9549067]
[1741384205999,31.9849067,143.41,143.35,31.9879067]
[1741384206195,31.9549067,143.4,143.35,0.033]
[1741384206400,0.03,143.41,143.37,31.9549067]
[1741384206698,0.03,143.41,143.38,31.9549067]
[1741384207408,0.03,143.41,143.36,31.9549067]
[1741384207591,0.03,143.41,143.35,0.033]
[1741384207592,0.03,143.41,143.37,31.9549067]
[1741384207794,0.03,143.41,143.38,31.9549067]
[1741384209296,0.03,143.41,143.35,31.9879067]
[1741384209297,31.9849067,143.41,143.35,31.9879067]
[1741384209616,0.03,143.41,143.36,31.9549067]
[1741384210020,0.03,143.41,143.37,31.9549067]
[1741384210322,0.03,143.41,143.38,31.9549067]
[1741384210536,0.03,143.41,143.36,31.9549067]
[1741384210712,0.03,143.41,143.4,31.9549067]
[1741384211041,0.03,143.41,143.37,31.9549067]
[1741384211238,0.03,143.41,143.35,25.65844886]
[1741384211239,0.03,143.41,143.36,31.9549067]
[1741384211412,0.03,143.41,143.39,31.9549067]
[1741384211743,0.03,143.41,143.4,31.9549067]
[1741384212316,0.03,143.41,143.39,31.9549067]
[1741384213952,0.03,143.41,143.39,38.9285067]
[1741384214943,0.03,143.41,143.36,0.033]
[1741384215246,0.03,143.41,143.36,38.9631067]
[1741384215538,0.03,143.41,143.37,31.9549067]
[1741384216238,0.03,143.41,143.36,38.9631067]
[1741384216445,0.03,143.41,143.37,31.9549067]
[1741384217539,0.03,143.41,143.36,0.033]
[1741384218033,0.03,143.41,143.36,31.9879067]
[1741384218427,2.8192,143.41,143.36,31.9879067]
[1741384220145,0.03,143.41,143.36,0.033]
[1741384220446,0.03,143.41,143.37,6.9749]
[1741384220818,0.03,143.41,143.39,31.9549067]
[1741384221225,0.03,143.41,143.38,31.9549067]
[1741384221628,0.03,143.41,143.4,31.9549067]
[1741384222228,0.03,143.41,143.38,18.64964886]
[1741384222419,0.03,143.41,143.4,31.9549067]
[1741384223444,0.03,143.41,143.39,31.9549067]
[1741384224257,0.03,143.41,143.4,31.9549067]
[1741384224546,0.03,143.41,143.39,38.9286067]
[1741384225242,0.03,143.41,143.37,31.9549067]
[1741384226248,0.03,143.41,143.39,31.9549067]
[1741384226454,0.03,143.41,143.4,31.9549067]
[1741384228633,0.03,143.41,143.4,38.9284067]
[1741384230049,0.03,143.41,143.4,31.9549067]
[1741384230249,0.03,143.41,143.4,38.9284067]
[1741384230457,0.03,143.41,143.4,31.9549067]
[1741384230954,0.03,143.41,143.4,38.9284067]
[1741384231655,0.03,143.41,143.4,63.85625556]
[1741384231873,0.03,143.41,143.4,38.2331067]
[1741384232045,0.03,143.41,143.39,31.9549067]
[1741384232241,0.03,143.41,143.37,25.62434886]
[1741384232444,0.03,143.41,143.39,31.9549067]
[1741384234962,0.03,143.41,143.38,31.9549067]
[1741384235163,0.03,143.41,143.36,31.9879067]
[1741384235369,20.00568329,143.41,143.36,0.033]
[1741384235864,0.03,143.41,143.36,20.00868329]
[1741384236268,22.79488329,143.41,143.36,0.033]
[1741384236964,2.8192,143.41,143.36,20.00868329]
[1741384237267,2.8192,143.41,143.36,31.99233646]
[1741384237966,0.03,143.41,143.37,31.95933646]
[1741384238139,0.03,143.41,143.39,31.95933646]
[1741384238350,0.03,143.41,143.37,6.9749]
[1741384238351,0.03,143.41,143.4,31.95933646]
[1741384239164,0.03,143.41,143.4,50.60898532]
[1741384240348,0.03,143.41,143.4,57.58248532]
[1741384243469,0.03,143.41,143.4,31.95933646]
[1741384244274,0.03,143.41,143.39,31.95933646]
[1741384244473,0.03,143.41,143.4,31.95933646]
[1741384244668,0.03,143.41,143.4,38.93283646]
[1741384244974,0.03,143.41,143.4,31.95933646]
[1741384245443,0.03,143.41,143.4,38.93283646]
[1741384245876,0.03,143.41,143.4,31.95933646]
[1741384246247,0.03,143.41,143.4,38.93283646]
[1741384246442,0.03,143.41,143.4,57.58248532]
[1741384246674,0.03,143.43,143.4,75.01618532]
[1741384246970,0.03,143.43,143.42,82.56832178]
[1741384247185,0.03,143.43,143.42,31.95933646]
[1741384248471,0.03,143.43,143.42,57.58148532]
[1741384249055,0.03,143.43,143.42,89.54082178]
[1741384249969,0.03,143.43,143.42,57.58148532]
[1741384250178,0.03,143.43,143.42,31.95933646]
[1741384250564,0.03,143.43,143.41,31.95933646]
[1741384250766,0.03,143.43,143.41,31.99233646]
[1741384250961,0.03,143.43,143.41,0.033]
[1741384252173,31.95933646,143.42,143.41,0.033]
[1741384252374,31.98933646,143.43,143.41,0.033]
[1741384252676,2.789,143.42,143.41,0.033]
[1741384253177,2.8188,143.43,143.41,0.033]
[1741384255364,35.82533646,143.43,143.41,0.033]
[1741384256473,9.9872,143.44,143.41,0.033]
[1741384256860,41.94653646,143.44,143.41,0.033]
[1741384257066,31.95933646,143.43,143.41,0.033]
[1741384257466,2.7888,143.43,143.41,0.033]
[1741384259662,8.94,143.44,143.41,0.033]
[1741384260367,8.94,143.44,143.41,31.99233646]
[1741384260570,11.7286,143.44,143.41,0.033]
[1741384260759,1.0472,143.43,143.41,0.033]
[1741384260966,11.7286,143.44,143.41,0.033]
[1741384261677,33.00653646,143.43,143.41,0.033]
[1741384262567,1.0472,143.43,143.41,0.033]
[1741384263358,50.65943646,143.44,143.41,0.033]
[1741384263359,8.94,143.44,143.41,0.033]
[1741384263686,0.03,143.43,143.41,0.033]
[1741384264756,0.03,143.43,143.42,19.97005098]
[1741384264953,0.03,143.43,143.42,38.61969984]
[1741384265164,0.03,143.43,143.42,58.58975082]
[1741384265894,0.03,143.43,143.42,65.56225082]
[1741384266462,0.03,143.43,143.42,45.59219984]
[1741384267296,0.03,143.43,143.42,89.4493154]
[1741384269487,0.03,143.5,143.42,89.4493154]
[1741384269488,0.03,143.5,143.49,50.56323213]
[1741384269693,0.03,143.5,143.49,82.4768154]
[1741384269890,0.03,143.56,143.5,18.64964886]
[1741384270188,0.03,143.56,143.53,31.91358327]
[1741384270789,0.03,143.56,143.55,31.91358327]
[1741384273461,0.03,143.56,143.55,57.52943213]
[1741384274058,0.03,143.56,143.55,50.56323213]
[1741384274576,0.03,143.58,143.55,89.4430154]
[1741384274779,91.22,143.65,143.6,31.91358327]
[1741384275086,91.22,143.65,143.61,31.91358327]
[1741384275392,2.1174,143.69,143.64,31.91358327]
[1741384275582,2.7835,143.7,143.67,31.91358327]
[1741384275894,118.23593209,143.71,143.67,31.91358327]
[1741384276270,118.26593209,143.71,143.67,31.91358327]
[1741384276900,31.91358327,143.7,143.64,31.91358327]
[1741384277206,32.96078327,143.7,143.64,31.91358327]
[1741384277998,31.91358327,143.7,143.64,31.91358327]
[1741384278197,41.68538327,143.71,143.64,31.91358327]
[1741384278401,34.72698327,143.71,143.65,31.91358327]
[1741384278589,2.8134,143.71,143.66,31.91358327]
[1741384278789,2.8134,143.71,143.67,31.91358327]
[1741384278986,2.8134,143.71,143.68,31.91358327]
[1741384279175,2.8134,143.71,143.7,31.91358327]
[1741384279176,0.03,143.71,143.7,31.91358327]
[1741384279389,0.03,143.71,143.66,6.0046]
[1741384279685,0.03,143.71,143.67,31.91358327]
[1741384280296,0.03,143.71,143.66,31.91358327]
[1741384280495,31.91358327,143.68,143.61,12.26789005]
[1741384280695,31.91358327,143.69,143.63,31.91358327]
[1741384280897,2.7839,143.68,143.63,31.91358327]
[1741384282977,2.7839,143.68,143.64,31.91358327]
[1741384283175,0.03,143.71,143.67,31.91358327]
[1741384283404,0.03,143.71,143.69,31.91358327]
[1741384284209,2.8134,143.71,143.67,31.91358327]
[1741384284577,0.03,143.71,143.67,31.91358327]
[1741384284905,0.03,143.71,143.68,31.91358327]
[1741384285405,0.03,143.71,143.61,12.26789005]
[1741384285406,31.91358327,143.69,143.61,12.26789005]
[1741384285587,31.91358327,143.69,143.63,31.91358327]
[1741384285789,32.96078327,143.7,143.64,31.91358327]
[1741384286107,31.91358327,143.69,143.61,12.26789005]
[1741384286287,1.0472,143.7,143.63,31.91358327]
[1741384286494,2.7837,143.69,143.63,31.91358327]
[1741384286702,2.7837,143.69,143.64,31.91358327]
[1741384287411,2.7837,143.69,143.65,31.91358327]
[1741384287583,2.7835,143.7,143.65,31.91358327]
[1741384287906,32.96078327,143.69,143.63,31.94658327]
[1741384288208,8.88,143.68,143.63,0.033]
[1741384288589,8.88,143.68,143.63,31.94658327]
[1741384288907,2.7841,143.67,143.63,0.033]
[1741384289075,31.91358327,143.66,143.63,0.033]
[1741384290290,2.7845,143.65,143.63,0.033]
[1741384290816,31.91358327,143.64,143.63,0.033]
[1741384291312,2.7845,143.65,143.63,0.033]
[1741384291606,8.88,143.68,143.64,31.91358327]
[1741384291812,11.664,143.68,143.65,31.91358327]
[1741384291981,11.664,143.68,143.64,31.91358327]
[1741384293407,11.664,143.68,143.63,6.9951]
[1741384293408,31.91358327,143.67,143.63,0.033]
[1741384293709,31.91358327,143.66,143.63,0.033]
[1741384293913,44.62478327,143.68,143.63,0.033]
[1741384294214,43.57758327,143.68,143.63,0.033]
[1741384294586,31.91358327,143.67,143.63,0.033]
[1741384295277,19.6711,143.68,143.63,0.033]
[1741384295590,2.7838,143.69,143.65,31.91358327]
[1741384295790,2.7838,143.69,143.64,31.91358327]
[1741384296308,8.88,143.7,143.67,31.91358327]
[1741384296494,11.6635,143.7,143.65,31.91358327]
[1741384297007,50.53598327,143.7,143.64,31.91358327]
[1741384298019,18.6224,143.7,143.65,31.91358327]
[1741384298188,50.53598327,143.7,143.64,31.91358327]
[1741384299104,31.91358327,143.69,143.63,31.94658327]
[1741384299291,32.96078327,143.69,143.63,31.94658327]
[1741384299690,31.91358327,143.68,143.63,0.033]
[1741384300830,42.70518327,143.67,143.63,0.033]
[1741384300992,31.91358327,143.65,143.63,0.033]
[1741384301199,8.88,143.64,143.63,0.033]
[1741384302825,8.86,143.67,143.64,6.9618]
[1741384303008,8.86,143.67,143.65,31.91358327]
[1741384303209,8.86,143.67,143.64,38.87538327]
[1741384303395,11.6441,143.67,143.63,0.033]
[1741384303595,31.91358327,143.66,143.63,0.033]
[1741384304434,18.6044,143.67,143.63,0.033]
[1741384304435,50.51798327,143.67,143.63,0.033]
[1741384304819,43.55768327,143.67,143.63,0.033]
[1741384305007,11.6441,143.67,143.63,0.033]
[1741384305327,2.7841,143.67,143.63,0.033]
[1741384306130,8.86,143.68,143.64,31.91358327]
[1741384306634,11.644,143.68,143.64,31.91358327]
[1741384306808,1.0472,143.7,143.64,31.91358327]
[1741384307127,43.58698327,143.71,143.64,31.91358327]
[1741384307326,32.96078327,143.7,143.64,31.91358327]
[1741384307507,31.91358327,143.7,143.64,31.91358327]
[1741384307907,43.58698327,143.71,143.65,31.91358327]
[1741384308200,31.91358327,143.7,143.64,31.91358327]
[1741384308903,43.58698327,143.71,143.65,31.91358327]
[1741384309229,43.58698327,143.71,143.63,6.9952]
[1741384309230,0.03,143.71,143.66,31.91358327]
[1741384309532,2.8133,143.71,143.66,31.91358327]
[1741384309835,34.72688327,143.71,143.65,31.91358327]
[1741384310127,2.8133,143.71,143.65,31.91358327]
[1741384310311,2.8133,143.71,143.65,38.87448327]
[1741384310631,2.8133,143.71,143.66,31.91358327]
[1741384310808,0.03,143.71,143.66,31.91358327]
[1741384311926,0.03,143.71,143.65,38.87448327]
[1741384312136,31.94358327,143.71,143.65,38.87448327]
[1741384312319,0.03,143.71,143.66,31.91358327]
[1741384312835,0.03,143.7,143.66,38.87408327]
[1741384313330,0.03,143.7,143.67,19.88849461]
[1741384313904,0.03,143.7,143.69,19.88849461]
[1741384315229,0.03,143.7,143.68,31.81697142]
[1741384316335,0.03,143.7,143.68,38.77657142]
[1741384316536,0.03,143.7,143.69,31.81697142]
[1741384316751,0.03,143.7,143.63,0.033]
[1741384316919,0.03,143.7,143.64,6.9618]
[1741384317100,0.03,143.7,143.67,31.81697142]
[1741384317728,0.03,143.7,143.64,56.18337142]
[1741384317729,0.03,143.7,143.69,31.81697142]
[1741384317901,0.03,143.7,143.68,31.81697142]
[1741384318106,0.03,143.7,143.67,31.81697142]
[1741384318722,0.03,143.7,143.66,31.81697142]
[1741384318928,0.03,143.7,143.65,31.81697142]
[1741384319329,8.87,143.7,143.64,31.81697142]
[1741384320214,8.87,143.7,143.65,31.81697142]
[1741384320417,8.87,143.7,143.66,31.81697142]
[1741384320638,8.87,143.7,143.67,31.81697142]
[1741384320941,8.87,143.7,143.68,31.81697142]
[1741384321837,8.87,143.7,143.65,24.3643]
[1741384322039,8.87,143.7,143.68,31.81697142]
[1741384322438,11.6535,143.7,143.66,31.81697142]
[1741384322618,43.47047142,143.7,143.63,0.033]
[1741384322819,43.47047142,143.7,143.64,31.81697142]
[1741384323021,31.81697142,143.69,143.63,0.033]
[1741384323342,31.81697142,143.69,143.63,31.84997142]
[1741384323511,31.81697142,143.69,143.63,38.81217142]
[1741384324439,31.81697142,143.69,143.63,31.84997142]
[1741384324619,31.81697142,143.69,143.63,0.033]
[1741384324818,2.7839,143.68,143.63,0.033]
[1741384325220,31.81697142,143.66,143.63,0.033]
[1741384325421,32.86417142,143.65,143.63,0.033]
[1741384325735,32.86417142,143.66,143.63,0.033]
[1741384326540,31.81697142,143.66,143.63,0.033]
[1741384326722,2.7845,143.65,143.63,0.033]
[1741384327822,34.60137142,143.66,143.63,0.033]
[1741384328026,82.3,143.67,143.63,0.033]
[1741384328212,85.0842,143.67,143.63,0.033]
[1741384329017,82.3,143.67,143.63,31.84997142]
[1741384329219,0.03,143.7,143.65,31.81697142]
[1741384329460,0.03,143.7,143.66,31.81697142]
[1741384329651,0.03,143.7,143.67,31.81697142]
[1741384329845,0.03,143.7,143.69,31.81697142]
[1741384330024,0.03,143.7,143.69,50.46662028]
[1741384330851,0.0001,143.7,143.69,57.42602028]
[1741384331330,21.37557319,143.74,143.7,18.64964886]
[1741384331541,21.37557319,143.74,143.73,31.81697142]
[1741384332254,21.37557319,143.74,143.72,31.81697142]
[1741384332558,34.62967142,143.75,143.66,12.9649]
[1741384332760,31.81697142,143.72,143.66,6.0042]
[1741384332930,2.7833,143.72,143.66,37.82117142]
[1741384333131,2.2366,143.75,143.71,31.81697142]
[1741384333433,31.81697142,143.73,143.66,37.82117142]
[1741384333636,31.81697142,143.73,143.67,31.81697142]
[1741384335652,2.7831,143.72,143.66,31.81697142]
[1741384336755,31.81697142,143.69,143.63,0.033]
[1741384336927,31.81697142,143.67,143.63,0.033]
[1741384337127,31.81697142,143.66,143.63,0.033]
[1741384337456,82.3,143.67,143.64,31.81697142]
[1741384337632,82.3,143.67,143.63,31.84997142]
[1741384338360,85.0842,143.67,143.63,0.033]
[1741384338562,116.90107142,143.67,143.63,0.033]
[1741384338773,82.3,143.67,143.63,0.033]
[1741384339445,31.81697142,143.65,143.63,0.033]
[1741384339664,32.86417142,143.66,143.63,0.033]
[1741384340045,31.81697142,143.66,143.63,0.033]
[1741384340370,2.7843,143.66,143.63,0.033]
[1741384340745,82.3,143.67,143.63,0.033]
[1741384340971,129.19857142,143.7,143.63,31.84997142]
[1741384341140,131.98217142,143.7,143.63,31.84997142]
[1741384341667,131.98217142,143.7,143.63,38.81207142]
[1741384342068,131.98217142,143.7,143.63,31.84997142]
[1741384342264,31.81697142,143.69,143.63,0.033]
[1741384343266,31.81697142,143.69,143.63,6.9952]
[1741384343877,31.81697142,143.68,143.63,0.033]
[1741384344052,31.81697142,143.65,143.63,0.033]
[1741384344369,1.0472,143.68,143.63,0.033]
[1741384344370,114.11697142,143.68,143.63,0.033]
[1741384344947,31.81697142,143.67,143.63,0.033]
[1741384345147,114.11697142,143.68,143.63,0.033]
[1741384345647,116.90097142,143.68,143.63,0.033]
[1741384345847,31.81697142,143.66,143.63,0.033]
[1741384346969,40.63697142,143.7,143.63,31.84997142]
[1741384347171,31.81697142,143.7,143.63,31.84997142]
[1741384347348,40.63697142,143.7,143.63,31.84997142]
[1741384347868,31.81697142,143.69,143.64,6.9618]
[1741384348171,125.70017142,143.72,143.65,31.81697142]
[1741384348758,116.90017142,143.72,143.65,31.81697142]
[1741384349360,31.81697142,143.71,143.66,6.9608]
[1741384349678,114.11697142,143.72,143.66,38.77777142]
[1741384349976,82.3,143.72,143.66,38.77777142]
[1741384350182,152.9366,143.75,143.68,31.81697142]
[1741384350183,31.84697142,143.75,143.68,31.81697142]
[1741384350478,0.03,143.75,143.69,31.81697142]
[1741384350652,31.81697142,143.74,143.66,13.1287]
[1741384350858,31.81697142,143.7,143.64,41.04187142]
[1741384351549,31.81697142,143.69,143.64,2.2635]
[1741384351849,31.81697142,143.66,143.63,0.033]
[1741384352063,31.81697142,143.67,143.63,0.033]
[1741384352473,31.81697142,143.67,143.63,6.9952]
[1741384352777,31.81697142,143.67,143.63,0.033]
[1741384353275,31.81697142,143.68,143.63,0.033]
[1741384353474,82.3,143.69,143.64,31.81697142]
[1741384353678,31.81697142,143.66,143.63,0.033]
[1741384354681,31.81697142,143.67,143.63,0.033]
[1741384355969,40.61697142,143.71,143.65,31.81697142]
[1741384356274,8.8,143.71,143.67,31.81697142]
[1741384357078,8.8,143.71,143.66,31.81697142]
[1741384357380,8.83,143.71,143.66,31.81697142]
[1741384357679,8.83,143.71,143.66,38.77747142]
[1741384357855,40.64697142,143.71,143.65,31.81697142]
[1741384358174,40.64697142,143.71,143.64,38.77857142]
[1741384358475,31.81697142,143.7,143.64,6.9616]
[1741384358652,31.81697142,143.7,143.63,38.81217142]
[1741384359049,32.86417142,143.69,143.63,0.033]
[1741384359254,31.81697142,143.69,143.63,6.9952]
[1741384359883,2.7839,143.68,143.63,6.9952]
[1741384362087,31.81697142,143.69,143.63,6.9952]
[1741384362386,34.60077142,143.69,143.63,6.9952]
[1741384362562,34.60077142,143.69,143.63,0.033]
[1741384363280,31.81697142,143.68,143.63,0.033]
[1741384364270,34.60097142,143.68,143.63,0.033]
[1741384364499,2.784,143.68,143.63,0.033]
[1741384365380,82.3,143.7,143.64,31.81697142]
[1741384365570,85.0836,143.7,143.64,31.81697142]
[1741384366288,85.0836,143.7,143.65,6.9613]
[1741384366693,116.90057142,143.7,143.63,31.84997142]
[1741384367879,82.3,143.7,143.64,31.81697142]
[1741384368083,82.3,143.7,143.65,31.81697142]
[1741384368462,82.3,143.7,143.66,31.81697142]
[1741384368662,8.81,143.71,143.66,31.81697142]
[1741384369070,11.5933,143.71,143.65,31.81697142]
[1741384370082,11.5933,143.71,143.66,6.9608]
[1741384370410,43.41027142,143.71,143.66,6.9608]
[1741384371204,11.5933,143.71,143.63,31.84997142]
[1741384371486,31.81697142,143.68,143.63,0.033]
[1741384372470,31.81697142,143.66,143.63,0.033]
[1741384372680,31.81697142,143.67,143.63,0.033]
[1741384373081,34.60107142,143.68,143.63,0.033]
[1741384373389,8.81,143.71,143.64,31.81697142]
[1741384373691,40.62697142,143.71,143.64,31.81697142]
[1741384374270,31.81697142,143.68,143.63,0.033]
[1741384374574,31.81697142,143.64,143.63,0.033]
[1741384374770,32.86417142,143.64,143.63,0.033]
[1741384376013,115.16417142,143.64,143.63,0.033]
[1741384376179,89.8508917,143.64,143.63,0.033]
[1741384376381,2.2825,143.63,143.54,10.83256973]
[1741384376593,2.2825,143.63,143.51,19.42496973]
[1741384376594,31.81697142,143.56,143.51,19.42496973]
[1741384377109,8.78,143.58,143.51,17.26946973]
[1741384377110,31.81697142,143.55,143.51,17.26946973]
[1741384377283,31.81697142,143.55,143.51,10.83256973]
[1741384377488,31.81697142,143.54,143.51,10.83256973]
[1741384377695,31.81697142,143.53,143.51,10.83256973]
[1741384378805,31.81697142,143.54,143.51,10.83256973]
[1741384378979,31.81697142,143.55,143.5,0.033]
[1741384379780,31.81697142,143.55,143.5,7.0014]
[1741384380305,31.81697142,143.55,143.5,0.033]
[1741384381199,31.81697142,143.54,143.5,0.033]
[1741384381384,32.86417142,143.55,143.5,0.033]
[1741384381708,31.81697142,143.58,143.52,31.81697142]
[1741384381882,40.57697142,143.58,143.52,31.81697142]
[1741384382082,40.57697142,143.58,143.51,31.81697142]
[1741384382806,40.57697142,143.58,143.52,31.81697142]
[1741384383194,31.81697142,143.56,143.5,0.033]
[1741384383594,31.81697142,143.56,143.5,31.84997142]
[1741384383789,31.81697142,143.55,143.5,0.033]
[1741384384305,82.3,143.57,143.52,31.81697142]
[1741384384510,82.3,143.57,143.53,31.81697142]
[1741384384707,8.76,143.58,143.52,31.81697142]
[1741384384883,40.57697142,143.58,143.51,31.81697142]
[1741384385085,40.57697142,143.58,143.52,31.81697142]
[1741384385607,8.76,143.58,143.52,31.81697142]